Cogmind - Beta 9.4 --- EXPLORER MODE // 2020.03.07 @ 21:48:04 // Winter2019/RPGLIKE Player: Clivos Result: Core destroyed Performance ------------- Evolutions (1) 500 Regions Visited (2) 400 Robots Destroyed (37) 185 Value Destroyed (803) 803 Prototype IDs (3) 60 Alien Tech Used (0) 0 Bonus (0) 0 TOTAL SCORE: 1948 Bonus ------- None Cogmind --------- Core Integrity 0/1050 Matter 350/350 Energy 425/600 System Corruption 0% Temperature Cool (620) Movement Walking (120) Location -9/Materials Parts ------- > --- POWER (3) -------- Ion Engine Ion Engine Ion Engine > --- PROPULSION (4) --- Aluminum Leg Aluminum Leg Aluminum Leg Aluminum Leg > --- UTILITY (3) ------ Heat Sink Utility Shielding Weapon Shielding > --- WEAPON (3) ------- Particle Gun Beam Cannon Heavy Assault Rifle > --- INVENTORY (4) ---- Improved Ion Engine Aluminum Leg Grenade Launcher Peak State ------------ > --- POWER ------------ Ion Engine Ion Engine Ion Engine > --- PROPULSION ------- Aluminum Leg Aluminum Leg Aluminum Leg Aluminum Leg > --- UTILITY ---------- Heat Sink Utility Shielding Weapon Shielding > --- WEAPON ----------- Particle Gun Beam Cannon Heavy Assault Rifle > --- INVENTORY -------- Improved Ion Engine Grenade Launcher [Rating: 15] Favorites ----------- Power Ion Engine Engine Ion Engine Propulsion Aluminum Leg Leg Aluminum Leg Utility Weapon Shielding Device Heat Sink Protection Weapon Shielding Weapon Particle Gun Energy Gun Particle Gun Energy Cannon Beam Cannon Ballistic Gun Assault Rifle Build | -11 -10 -9 ------- Run | Scr Mat Mat Slots Evolved 9 | 5 . 4 Power 2 | 1 . 1 Propulsion 3 | 2 . 1 Utility 2 | 1 . 1 Weapon 2 | 1 . 1 Parts Attached 19 | 7 6 6 Power 4 | 1 2 1 Engine 4 | 1 2 1 Core . | . . . Reactor . | . . . Propulsion 5 | 2 1 2 Treads . | . . . Leg 5 | 2 1 2 Wheel . | . . . Hover . | . . . Flight . | . . . Utility 3 | 2 . 1 Device 1 | . . 1 Storage . | . . . Processor . | . . . Hackware . | . . . Protection 2 | 2 . . Artifact . | . . . Weapon 7 | 2 3 2 Energy Gun 3 | 1 2 . Energy Cannon 1 | . . 1 Ballistic Gun 3 | 1 1 1 Ballistic Cannon . | . . . Launcher . | . . . Special Weapon . | . . . Impact Weapon . | . . . Slashing Weapon . | . . . Piercing Weapon . | . . . Special Melee Weapon . | . . . Unidentified Prototypes . | . . . Parts Lost . | . . . Power . | . . . Propulsion . | . . . Utility . | . . . Weapon . | . . . Highest Loss Streak . | . . . Average Slot Usage (%) 98 | . 98 98 Engine 21 | . 21 21 Leg 32 | . 32 31 Protection 21 | . 22 18 Energy Gun 10 | . 10 9 Ballistic Gun 10 | . 10 9 Naked Turns . | . . . Heaviest Build 27 | 7 17 27 Greatest Support 40 | 20 30 40 Greatest Overweight (x) 1 | 1 . . Average Overweight (x) . | . . . Largest Inventory Capacity 4 | 3 3 4 Average Capacity 3 | 3 3 3 Most Carried 4 | 2 3 4 Average Carried 2 | . 2 2 Final Capacity 4 | 3 3 4 Final Carried 3 | 1 3 3 Class Distribution -------------------- 87% | Hacker-Mutant 12% | Scavenger-Gunner Dominant Class ---------------- Hacker-Mutant | -10/Materials Hacker-Mutant | -9/Materials Resources | -11 -10 -9 ----------- Run | Scr Mat Mat Matter Collected 685 | 320 198 167 Remotely . | . . . Salvage Created 987 | . 217 770 Parts 84 | . 21 63 Haulers Intercepted 1 | . . 1 Recyclers Shooed . | . . . Parts Field Recycled . | . . . Retrieved Matter . | . . . Parts Self-Destructed . | . . . Prevented . | . . . Kills | -11 -10 -9 ------- Run | Scr Mat Mat Combat Hostiles Destroyed 25 | . 7 18 Guns 22 | . 7 15 Cannons 3 | . . 3 Classes Destroyed 9 | . 4 5 Worker 3 | . . 3 Builder 1 | . . 1 Hauler 1 | . . 1 Recycler 1 | . 1 . Watcher 6 | . 3 3 Swarmer 10 | . 4 6 Grunt 9 | . 3 6 Duelist 1 | . . 1 Sentry 5 | . . 5 Best Kill Streak 11 | . 2 11 Combat Bots Only 8 | . 2 8 Max Kills in Single Turn 2 | . 1 2 Gunslinging . | . . . Exploded . | . . . Melee . | . . . Uniques/NPCs Destroyed . | . . . Combat | -11 -10 -9 -------- Run | Scr Mat Mat Damage Taken 1565 | . 226 1339 Core 1405 | . 163 1242 Absorbed by Shields . | . . . Redirected to Core 361 | . 126 235 Core Remaining (%) 100 | 100 100 . Volleys Fired 69 | . 30 39 Largest 3 | . 2 3 Hottest 148 | . 85 148 Shots Fired 155 | . 59 96 Gun 136 | . 59 77 Cannon 19 | . . 19 Launcher . | . . . Special . | . . . Kinetic 69 | . 30 39 Thermal 86 | . 29 57 Explosive . | . . . Electromagnetic . | . . . Robot Hit Streak 24 | . 14 24 Robot Miss Streak 2 | . 2 2 Penetration Max . | . . . Secondary Targets . | . . . Shots Hit Robots 108 | . 42 66 Core Hits 50 | . 15 35 Critical Hits 1 | . 1 . Critical Kills . | . . . Critical Parts Destroyed 1 | . 1 . Melee Attacks . | . . . Impact . | . . . Slashing . | . . . Piercing . | . . . Sneak Attacks . | . . . Combat Hostiles . | . . . Follow-up Attacks . | . . . Damage Inflicted 1482 | . 445 1037 Guns 1284 | . 439 845 Cannons 176 | . . 176 Explosions . | . . . Melee . | . . . Ramming 22 | . 6 16 Kinetic 729 | . 236 493 Thermal 731 | . 203 528 Explosive . | . . . Electromagnetic . | . . . Impact . | . . . Slashing . | . . . Piercing . | . . . Highest Corruption 1 | . 1 . Average Corruption 1 | . 1 . Corruption Purged . | . . . Effects 6 | . 6 . Message Errors 3 | . 3 . Data Loss (minor) 2 | . 2 . Targeting Errors 1 | . 1 . Overload Shots . | . . . Overflow Damage . | . . . Projectiles . | . . . Explosions . | . . . Melee . | . . . Knockbacks . | . . . Impact . | . . . Kinetic . | . . . Secondary . | . . . Self-Inflicted Damage 4 | . . 4 Shots . | . . . Rammed 2 | . . 2 Targets Rammed 6 | . 1 5 Kicked 4 | . 1 3 Crushed . | . . . Highest Temperature 860 | . 270 860 Average Temperature 153 | . 92 194 Received Heat Transfer 279 | . 105 174 Effects 32 | . 2 30 Shutdowns 11 | . . 11 Energy Bleed 7 | . 2 5 Interference 3 | . . 3 Matter Decay 1 | . . 1 Short Circuit 2 | . . 2 Damage (minor) 2 | . . 2 Damage (major) 1 | . . 1 Damage (core) 5 | . . 5 Siege Activations . | . . . Robots Corrupted . | . . . Combat Hostiles . | . . . Parts Fried . | . . . Impact Corruptions . | . . . Robots Melted . | . . . Combat Hostiles . | . . . Parts Melted 4 | . . 4 Heat Transferred 1693 | . 472 1221 Parts Sabotaged . | . . . Parts Stolen . | . . . Parts Stripped . | . . . Power Chain Reactions . | . . . Missiles Intercepted . | . . . Alert | -11 -10 -9 ------- Run | Scr Mat Mat Peak Influence 340 | . 126 340 Average Influence 84 | . 53 165 Maximum Alert Level 1 | . . 1 Low Security (%) 90 | 100 100 67 Level 1 9 | . . 32 Level 2 . | . . . Level 3 . | . . . Level 4 . | . . . Level 5 . | . . . High Security . | . . . Max Security . | . . . Squads Dispatched 1 | . . 1 Investigation 1 | . . 1 Extermination . | . . . Reinforcement . | . . . Assault . | . . . Garrison . | . . . Intercept . | . . . Construction Impeded . | . . . Haulers Reinforced . | . . . Stealth | -11 -10 -9 --------- Run | Scr Mat Mat Distress Signals 1 | . . 1 Communications Jammed . | . . . Distress Signals . | . . . Times Spotted 37 | . 11 26 Peak Tracking Total 4 | . 2 4 Tactical Retreats . | . . . Traps | -11 -10 -9 ------- Run | Scr Mat Mat Traps Triggered 1 | . 1 . Indirectly . | . . . Trap Hack Attempts . | . . . Triggered . | . . . Disarmed . | . . . Reprogrammed 2 | . 2 . Reused . | . . . Traps Extracted . | . . . Installed . | . . . Triggered . | . . . Machines | -11 -10 -9 ---------- Run | Scr Mat Mat Machines Disabled . | . . . Max in Single Turn . | . . . Machines Sabotaged . | . . . Garrisons Compromised . | . . . Overloaded Fab Kills . | . . . Fab Network Shutdowns . | . . . Hacking | -11 -10 -9 --------- Run | Scr Mat Mat Machines Accessed 10 | . 8 2 Terminals 9 | . 7 2 Fabricators . | . . . Repair Stations 1 | . 1 . Recycling Units . | . . . Scanalyzers . | . . . Garrison Access . | . . . Total Hacks 35 | . 27 8 Successful 26 | . 21 5 Failed 9 | . 6 3 Catastrophic . | . . . Database Lockouts . | . . . Manual . | . . . Terminals 32 | . 24 8 Fabricators . | . . . Repair Stations 3 | . 3 . Recycling Units . | . . . Scanalyzers . | . . . Garrison Access . | . . . Terminal Hacks 24 | . 19 5 Record 8 | . 6 2 Robot Analysis 2 | . 2 . Prototype ID Bank 2 | . 2 . Branch Access Points 2 | . 1 1 Emergency Access Points 1 | . . 1 Repair Station Index 1 | . 1 . Scanalyzer Index 1 | . 1 . Alert Level 1 | . 1 . Locate Traps 2 | . 1 1 Reprogram Traps 1 | . 1 . Hauler Manifests 2 | . 2 . Registered Components 1 | . 1 . Fabricator Hacks . | . . . Repair Station Hacks 2 | . 2 . Scan Component 1 | . 1 . Repair 1 | . 1 . Recycling Unit Hacks . | . . . Scanalyzer . | . . . Garrison Access Hacks . | . . . Unauthorized Hacks . | . . . Terminals . | . . . Fabricators . | . . . Repair Stations . | . . . Recycling Units . | . . . Scanalyzers . | . . . Garrison Access . | . . . Data Cores Recovered . | . . . Used . | . . . Hacking Detections 6 | . 4 2 Full Trace Events 2 | . . 2 Feedback Events . | . . . Feedback Blocked . | . . . Robot Schematics Acquired . | . . . Robots Built . | . . . Matter . | . . . Time . | . . . Total Robot Build Rating . | . . . Part Schematics Acquired . | . . . Parts Built . | . . . Matter . | . . . Time . | . . . Total Part Build Rating . | . . . Parts Repaired 1 | . 1 . Time 32 | . 32 . Parts Recycled . | . . . Recycled Matter . | . . . Retrieved Matter . | . . . Retrieved Components . | . . . Parts Scanalyzed . | . . . Part Schematics Acquired . | . . . Parts Damaged . | . . . Bothacking | -11 -10 -9 ------------ Run | Scr Mat Mat Used RIF Installer . | . . . Robots Hacked . | . . . Non-combat . | . . . Combat . | . . . Robot Hacks Applied . | . . . Relay Couplers Released . | . . . Robots Rewired . | . . . Allies Hacked . | . . . Hacks Repelled . | . . . Allies | -11 -10 -9 -------- Run | Scr Mat Mat Total Allies . | . . . Largest Group . | . . . Highest-Rated Group . | . . . Highest-Rated Ally . | . . . Total Orders . | . . . Ally Attacks . | . . . Total Damage . | . . . Kills . | . . . Allies Corrupted . | . . . Allies Melted . | . . . Intel | -11 -10 -9 ------- Run | Scr Mat Mat Robot Analysis Total 2 | . 2 . Derelict Logs Recovered . | . . . Drone Launches . | . . . Drone Recoveries . | . . . Exploration | -11 -10 -9 ------------- Run | Scr Mat Mat Turns Passed 1670 | 66 1101 503 Spaces Moved 1125 | 53 789 283 Core 30 | 30 . . Treads . | . . . Legs 1095 | 23 789 283 Wheels . | . . . Hover . | . . . Flight . | . . . Fastest Speed 50 | 50 120 120 Average Speed 118 | 97 120 120 Slowest Speed 120 | 120 120 120 Overloaded Moves . | . . . Propulsion Burnouts . | . . . Robots Hopped . | . . . Cave-ins Triggered . | . . . Exploration Rate (%) 40 | 4 94 23 Regions Visited 2 Branch Regions . Pre-discovered Areas . | . . . Known Exits Taken 2 | 1 1 . Unknown Exits Taken . | . . . Scrap Searched . | . . . Spaces Dug . | . . . Terrain Destroyed . | . . . Melee . | . . . Projectile . | . . . AOE . | . . . Actions | -11 -10 -9 --------- Run | Scr Mat Mat Total 1319 | 67 888 364 Wait 46 | . 40 6 Move 1123 | 52 788 283 Hop . | . . . Pick Up 20 | 8 7 5 Fast Attach 5 | . 4 1 Attach 13 | 7 2 4 Detach . | . . . Swap 1 | . . 1 Drop 8 | . 6 2 Fire 69 | . 30 39 Melee . | . . . Ram . | . . . Kick 6 | . 1 5 Crush . | . . . Escape Stasis . | . . . Rewire . | . . . Trap . | . . . Miscellaneous 28 | . 10 18 Route ------- -11/Scrapyard -10/Materials (discovered 4 exits: *Mat x3 / *Min) -9/Materials (discovered 3 exits: *Mat / Min / Sto) History --------- Turn | Location | Event 1 | -11/Scrapyard | Upgraded with Power slot (x1) 1 | -11/Scrapyard | Upgraded with Propulsion slot (x2) 1 | -11/Scrapyard | Upgraded with Utility slot (x1) 1 | -11/Scrapyard | Upgraded with Weapon slot (x1) 13 | -11/Scrapyard | Identified exit to Materials 13 | -11/Scrapyard | Discovered exit to Materials (range 16) 67 | -11/Scrapyard | Entered Materials 277 | -10/Materials | Identified exit to Mines 340 | -10/Materials | Build established: Hacker-Mutant 427 | -10/Materials | Identified exit to Materials 427 | -10/Materials | Discovered exit to Materials (range 14) 653 | -10/Materials | Discovered exit to Materials (range 8) 776 | -10/Materials | Discovered exit to Materials (range 11) 963 | -10/Materials | Repaired Particle Gun 1168 | -10/Materials | Entered another Materials area 1170 | -9/Materials | Reached level 2 1170 | -9/Materials | Reached level 3 1218 | -9/Materials | Reached level 4 1440 | -9/Materials | Identified exit to Materials 1440 | -9/Materials | Discovered exit to Materials (range 16) 1458 | -9/Materials | Upgraded with Power slot (x1) 1458 | -9/Materials | Upgraded with Propulsion slot (x1) 1458 | -9/Materials | Upgraded with Utility slot (x1) 1458 | -9/Materials | Upgraded with Weapon slot (x1) 1605 | -9/Materials | Identified exit to Mines 1605 | -9/Materials | Identified exit to Storage 1613 | -9/Materials | Reached level 5 1657 | -9/Materials | Core integrity fell below 50% 1661 | -9/Materials | Core integrity fell below 20% 1672 | -9/Materials | Core destroyed Last Messages --------------- 01660_ Overheating: Energy bleed (-105). 01661_ Overheating: Core damaged (-210). 01661_ U-05 Engineer builds a Door. 01662_ Overheating: Short circuit. 01662_ Broken Heat Sink permanently disabled. 01663_ Power failure, Ion Engine shutdown. 01663_ Overheating: System interference. 01663_ Beam Cannon temporarily disabled. 01664_ Power failure, Ion Engine shutdown. 01665_ Protomatter-51 decays. 01666_ Overheating: Broken Heat Sink damaged (-9). 01669_ Overheating: Matter decay (-35). 01670_ Overheating: Particle Gun damaged (-32). 01670_ K-01 Serf collects debris. 01670_ Acquired 27 matter. 01671_ Overheating: System interference. 01671_ Hvy. Assault Rifle temporarily disabled. 01671_ Particle Gun temporarily disabled. 01672_ Power failure, Ion Engine shutdown. 01672_ Overheating: Core damaged (-199). Map ----- +----------------------------------------------------+ | ??????????????????????????????????#########+### | | ??????????????????????????????????? | | ???????????????????????????????????? | | ????????????????????????????????????????? [ | | ??????????????????????????????????????????????# % | | ???????????????????????????????????????######## | | ???????????????????????????????????????# # | | ????????????????????????????????????????# ! = | | ????????????????????????????????????????# #* | | ????????????????????????????????????????#######% | | ??????????????????????????????????????#########%! | | ??????????????????????????????????????# | | ??????????????????????????????????????# ^^ ^ | | ??????????????????????????????????????# """ ^ | | ??????????????????????????????????????# """ % | | ??????????????????????????????????????# """^!^ | | ??????????????????????????????????????#^^ ^ ^[[ | | ??????????????????????????????????????# [[ | | ???????????????????????????????????? # [[ | | ?????????????????????????????????? # *%= | | ?????????????# ????????????????? # = %% | | ??????????! # =############### # !####### | | ??????????? + [^ =%=* + ?? ?# # """ " | | ??????????????#[^!%=!%== =k#####+#### # """ " | | ??????????????#%***%!!==u!%*=# !%* # # """ " | | ??????????????#^[^* |==%@=!%%/u [ "" # + | | ??????????????#^ * =########[ T" # # | | ??????????????# a ???????# "" + # | | ??????????????# ???????# # # | | ??????????????# ^!! ???????# """ ### # | | ????????????? !! ???????# """ #?# ##+#### | | ???????????# ! ???????# """ #?# !% | | ???????????# ???????# #?# #### | | ???????????# ???????##########?# #??? | | ???????????# ####?????????????????? #??? | | ???????????# ?????????????????????######+#??? | | ???????????# ????????????????????????????????? | | ????????????? ????????????????????????????????? | | ????????????????????????????????????????????????? | | ????????????????????????????????????????????????? | | ????????????????????????????????????????????????? | | ????????????????????????????????????????????????? | | ????????????????????????????????????????????????? | | ????????????????????????????????????????????????? | | ????????????????????????????????????????????????? | | ????????????????????????????????????????????????? | | ????????????????????????????????????????????????? | | ????????????????????????????????????????????????? | | ????????????????????????????????????????????????? | | ????????????????????????????????????????????????? | +----------------------------------------------------+ Best States ------------- Heat Dissipation 35 Energy Generation 25 Energy Capacity 600 Matter Stores 350 Matter Capacity 350 Sight Range 16 Terrain Scan Density 10 Resistance: KI 35 Resistance: TH 35 Resistance: EX 35 Resistance: EM 35 Resistance: I 35 Resistance: S 35 Resistance: P 35 Utility Shielding 33 Weapon Shielding 33 Evasion (%) 50 Offensive Hacking 20 Item Schematics ----------------- None Robot Schematics ------------------ None Fabricated ------------ Nothing Alien Tech Used ----------------- None Achievements -------------- None Challenges ------------ None RPGLIKE | -11 -10 -9 --------- Run | Scr Mat Mat Levels Raised 4 | . . 4 XP Earned 12851 | 6000 1125 5726 XP Spent 10485 | 5480 . 5005 Upgrades 26 | 19 . 7 Power Slot 2 | 1 . 1 Propulsion Slot 3 | 2 . 1 Utility Slot 2 | 1 . 1 Weapon Slot 2 | 1 . 1 Core Integrity 9 | 8 . 1 Energy Generation 1 | 1 . . Energy Storage 1 | 1 . . Matter Storage 1 | 1 . . Inventory Capacity 4 | 3 . 1 Ranged Accuracy 1 | . . 1 Protomatter Created 370 | . 130 240 Integrity Restored 466 | . 172 294 Core 286 | . 163 123 Parts 180 | . 9 171 Protomatter Decayed 188 | . 72 116 Game ------ Seed SystemSuperchargedMultirail Manual? 0 Play Time 00:33:00 Cumulative 17.4 hours Start 2020.03.07 @ 21:12:01 End 2020.03.07 @ 21:48:04 Sessions 1 Manual Loads 0 Difficulty Explorer Special Mode Winter2019/RPGLIKE Game No. 7 Rogue 3 Adventurer 1 Explorer 3 Win Type - Total 0 Types 0/0/0/0/0/0/0 Lore% 5 Gallery% 17 Achievement% 15 Wizard Run 0 Options --------- ASCII 0 Keyboard 0 Movement Arrows Keybinds 0 Fullscreen 1 Font 18/Terminus Map View 76x50 Tactical HUD 1 Map Filters NONE Filters NONE Steam 1 RUN: 7879315d-ad8d-490c-9ed7-baf072c42974